bitfinex/quotes_ETHUSD_20240926
["timestamp","ask_amount","ask_price","bid_price","bid_amount"]
[1727319847195,3.07468,2601.9,2601.7,0.07475806]
[1727319848108,3.07467,2601.9,2601.7,0.07475806]
[1727319850328,3.07479,2601.8,2601.7,0.07475806]
[1727319850628,3.07472,2601.9,2601.7,0.07475806]
[1727319851919,3.07458,2602.0,2601.7,0.07475806]
[1727319852120,3.0747,2601.9,2601.7,0.07475806]
[1727319853637,3.07479,2601.8,2601.7,0.07475806]
[1727319853836,3.90389,2601.8,2601.7,0.07475806]
[1727319857040,0.8291,2601.8,2601.7,0.07475806]
[1727319857310,3.90389,2601.8,2601.7,0.07475806]
[1727319858081,3.89620287,2601.8,2601.7,0.07475806]
[1727319858292,3.89428109,2601.8,2601.7,0.07475806]
[1727319864078,3.07479,2601.8,2601.7,0.07475806]
[1727319865987,3.07479,2601.8,2601.6,0.0124562]
[1727319866312,3.07467,2601.9,2601.7,0.07482157]
[1727319866608,3.07467,2601.9,2601.6,0.0124562]
[1727319866823,3.07467,2601.9,2601.8,0.07482157]
[1727319867015,3.07487,2601.8,2601.6,0.0124562]
[1727319867309,3.85691,2601.7,2601.6,0.0124562]
[1727319868101,3.07491,2601.7,2601.6,0.0124562]
[1727319876817,3.07491,2601.7,2601.6,0.08739572]
[1727319876980,3.07491,2601.7,2601.6,0.0124562]
[1727319883120,3.07491,2601.7,2601.6,0.08739572]
[1727319883343,3.07491,2601.7,2601.6,0.0124562]
[1727319883546,3.07491,2601.7,2601.6,0.08738665]
[1727319883702,3.07491,2601.7,2601.6,0.0124562]
[1727319884404,3.07491,2601.7,2601.6,0.08738665]
[1727319897465,3.07491,2601.7,2601.6,0.84988665]
[1727319903637,3.07491,2601.7,2601.6,0.08738665]
[1727319922093,0.06694991,2603.4,2601.7,3.82581]
[1727319922393,0.06694991,2603.4,2601.6,0.08738665]
[1727319922394,3.07404,2602.5,2601.9,3.07464]
[1727319922623,3.0741,2602.4,2602.0,0.77634693]
[1727319922767,3.0741,2602.4,2602.0,0.7509]
[1727319922968,0.809,2602.7,2602.0,0.8256399]
[1727319923268,3.07422,2602.3,2602.1,0.02544784]
[1727319923484,3.07422,2602.3,2602.1,0.07438606]
[1727319925099,3.074,2602.5,2602.1,0.07438606]
[1727319925302,3.074,2602.5,2602.1,0.09983844]
[1727319925303,6.14806,2602.5,2602.1,0.09983844]
[1727319925477,6.14805,2602.5,2602.1,0.09983844]
[1727319925806,6.14805,2602.5,2602.1,0.07438606]
[1727319925807,3.07408,2602.4,2602.1,0.07438606]
[1727319925973,6.14805,2602.5,2602.1,0.07438606]
[1727319926291,6.14805,2602.5,2602.1,0.09983851]
[1727319926494,3.074,2602.5,2602.1,0.09983851]
[1727319926794,6.14804,2602.5,2602.1,0.07438606]
[1727319927174,6.14804,2602.5,2602.1,0.09983859]
[1727319927371,6.14804,2602.5,2602.1,0.07438606]
[1727319927764,3.07414,2602.4,2602.1,0.07438606]
[1727319927965,3.07408,2602.4,2602.1,0.07438606]
[1727319928465,3.074,2602.5,2602.1,0.07438606]
[1727319929799,3.07355,2602.9,2602.1,0.07438606]
[1727319929800,0.8119,2602.9,2602.3,3.07419]
[1727319930002,3.88548,2602.9,2602.4,0.82392322]
[1727319930165,3.07362,2602.8,2602.4,0.89778311]
[1727319930364,3.07362,2602.8,2602.4,0.87235989]
[1727319931595,3.07362,2602.8,2602.4,0.94412622]
[1727319931962,3.07333,2603.1,2602.5,3.0739]
[1727319932162,6.1467,2603.1,2602.6,0.799]
[1727319932408,6.1467,2603.1,2602.6,0.94450832]
[1727319932909,3.07333,2603.1,2602.6,4.01834832]
[1727319933204,3.07332,2603.1,2602.7,0.02540282]
[1727319933372,3.07332,2603.1,2602.6,0.96991114]
[1727319933697,6.14669,2603.1,2602.7,0.14550832]
[1727319933906,3.07338,2603.0,2602.7,0.14550832]
[1727319935599,3.07332,2603.1,2602.7,0.14550832]
[1727319936097,3.07309,2603.3,2602.7,0.14550832]
[1727319936098,6.14621,2603.3,2602.8,0.02540123]
[1727319936303,6.14621,2603.3,2602.9,0.7691]
[1727319936304,3.07319,2603.2,2602.9,0.7691]
[1727319936474,3.07319,2603.2,2602.9,0.91415492]
[1727319937299,3.07335,2603.1,2602.9,0.91415492]
[1727319939526,3.07325,2603.2,2602.9,0.91415492]
[1727319941187,6.14648,2603.2,2602.9,0.91415492]
[1727319941385,3.07323,2603.2,2602.9,0.91415492]
[1727319941584,3.07323,2603.2,2602.9,0.14505492]
[1727319941792,3.07323,2603.2,2602.7,0.7554]
[1727319941986,3.07323,2603.2,2602.8,0.1445925]
[1727319942581,3.07337,2603.0,2602.8,0.1445925]
[1727319942796,3.07328,2603.1,2602.8,0.1445925]
[1727319943429,3.07339,2603.0,2602.8,0.1445925]
[1727319943580,6.96844,2603.0,2602.8,0.1445925]
[1727319943780,3.07349,2602.9,2602.8,0.1445925]
[1727319943981,3.07349,2602.9,2602.5,0.7552]
[1727319944182,3.07349,2602.9,2602.6,0.1445925]
[1727319945682,3.07362,2602.8,2602.6,0.1445925]
[1727319945887,3.07373,2602.7,2602.6,0.1445925]
[1727319946320,3.07373,2602.7,2602.3,0.7564]
[1727319946525,3.07373,2602.7,2602.6,0.14471942]
[1727319946755,3.07362,2602.8,2602.3,0.7564]
[1727319947090,3.07362,2602.8,2602.3,3.85594774]
[1727319947243,3.07362,2602.8,2602.4,0.14481009]
[1727319947408,3.07328,2603.1,2602.6,3.07375]
[1727319947613,3.07328,2603.1,2602.7,0.02540192]
[1727319947813,3.07328,2603.1,2602.8,0.14481009]
[1727319948023,3.07328,2603.1,2602.6,3.09915207]
[1727319948222,3.07328,2603.1,2602.7,0.14481009]
[1727319949343,3.07328,2603.1,2602.8,0.8159]
[1727319949634,3.07306,2603.3,2602.8,0.8159]
[1727319949813,3.07306,2603.3,2602.9,0.14481009]
[1727319951301,6.14615,2603.3,2602.9,0.14481009]
[1727319952207,3.07306,2603.3,2602.9,0.14481009]
[1727319952429,3.07321,2603.2,2602.9,0.14481009]
[1727319953622,3.07306,2603.3,2602.9,0.14481009]
[1727319953826,6.14618,2603.3,2602.9,0.14481009]
[1727319954024,3.07306,2603.3,2602.9,0.14481009]
[1727319954224,3.07314,2603.2,2602.9,0.14481009]
[1727319955130,3.07306,2603.3,2602.9,0.14481009]
[1727319955334,3.07326,2603.1,2602.9,0.14481009]
[1727319961622,3.07326,2603.1,2602.6,0.7847]
[1727319961623,6.14658,2603.1,2602.6,0.7847]
[1727319962021,3.07326,2603.1,2602.7,0.14453809]
[1727319971447,3.07317,2603.2,2602.7,0.14453809]
[1727319971770,3.07321,2603.2,2602.8,0.8129]
[1727319972109,3.07321,2603.2,2602.9,0.14451996]
[1727319973737,3.07307,2603.3,2602.9,0.14451996]
[1727319976172,0.8187,2603.3,2602.9,0.14451996]
[1727319976374,3.07328,2603.1,2602.9,0.14451996]
[1727319976579,3.07328,2603.1,2602.5,3.87861]
[1727319976782,3.07328,2603.1,2603.0,0.14434772]
[1727319977277,3.07339,2603.0,2602.5,3.87866]
[1727319978055,3.07339,2603.0,2602.5,0.8047]
[1727319978056,6.14688,2603.0,2602.5,0.8047]
[1727319978410,3.07146907,2603.0,2602.5,0.83011609]
[1727319978855,6.14491907,2603.0,2602.5,0.8047]
[1727319979055,3.07146907,2603.0,2602.5,0.8047]
[1727319979274,3.07146907,2603.0,2602.5,0.8301163]
[1727319981090,3.07146907,2603.0,2602.5,0.8047]
[1727319981715,0.8116,2603.1,2602.2,0.7928]
[1727319981903,0.8096,2602.7,2602.6,0.14444743]
[1727319982217,0.8096,2602.7,2602.2,3.86704]
[1727319982362,0.8096,2602.7,2602.6,0.14453809]
[1727319982561,0.8096,2602.7,2602.2,3.86704]
[1727319983063,0.8096,2602.7,2602.3,0.14453809]
[1727319983354,0.8096,2602.7,2602.3,3.07419]
[1727319983589,0.8096,2602.7,2602.4,0.14453809]
[1727319985262,0.8096,2602.7,2602.4,3.21859809]
[1727319986799,0.8096,2602.7,2602.4,3.21854809]
[1727319987152,0.8096,2602.7,2602.4,6.29256809]
[1727319987662,0.8096,2602.7,2602.4,3.21854809]
[1727319988300,0.7967,2603.3,2602.7,3.07364]
[1727319988516,3.86975,2603.3,2602.7,3.07364]
[1727319988807,3.86991,2603.2,2602.8,0.14490982]
[1727319989287,3.86991,2603.2,2602.9,0.14490982]
[1727319989482,3.07326,2603.1,2602.9,0.14490982]
[1727319989793,3.07326,2603.1,2602.4,6.14797]
[1727319989794,4.257066,2603.0,2602.4,6.14797]
[1727319990097,4.257066,2603.0,2602.5,0.14478289]
[1727319990098,0.7967,2602.7,2602.5,0.14478289]
[1727319990504,0.7967,2602.7,2602.4,3.07403]
[1727319990664,0.7967,2602.7,2602.6,0.14478289]
[1727319990860,0.7967,2602.7,2602.3,6.14825]
[1727319991063,0.7967,2602.7,2602.4,0.14478289]
[1727319991776,0.7967,2602.7,2602.4,3.21884289]
[1727319992299,0.7967,2602.7,2602.4,0.14478289]
[1727319999079,0.7967,2602.7,2602.2,3.07428]
[1727319999399,0.7967,2602.7,2602.3,0.14502769]
[1727319999906,0.7967,2602.7,2602.4,0.14502769]
[1727320001366,0.7967,2602.7,2602.2,3.07428]
[1727320001570,0.7967,2602.7,2602.5,0.14502769]
[1727320001791,0.7967,2602.7,2602.3,3.07419]
[1727320001997,0.7967,2602.7,2602.6,0.14502769]
[1727320002169,0.7967,2602.7,2602.3,3.07419]
[1727320002366,0.7967,2602.7,2602.6,0.14502769]
[1727320002608,0.7967,2602.7,2602.3,3.07419]
[1727320002825,0.7967,2602.7,2602.6,0.14502769]
[1727320002966,0.7967,2602.7,2602.3,3.07419]
[1727320003172,0.7967,2602.7,2602.6,0.14502769]
[1727320003458,0.7967,2602.7,2602.3,3.07419]
[1727320003591,3.83316,2602.9,2602.6,0.14502769]
[1727320003786,3.83316,2602.9,2602.4,3.85507]
[1727320004015,3.83316,2602.9,2602.7,0.14506396]
[1727320004223,3.83316,2602.9,2602.4,3.85507]
[1727320004462,3.83316,2602.9,2602.8,0.14506396]
[1727320004600,3.83316,2602.9,2602.4,3.85507]
[1727320004805,3.83316,2602.9,2602.8,0.14506396]
[1727320004998,3.83316,2602.9,2602.4,3.85507]
[1727320005200,3.83316,2602.9,2602.8,0.14506396]
[1727320005410,3.83316,2602.9,2602.4,3.85507]
[1727320005605,3.83316,2602.9,2602.8,0.14506396]
[1727320005810,3.83316,2602.9,2602.4,3.85507]
[1727320006009,3.83316,2602.9,2602.8,0.14506396]
[1727320006631,3.83316,2602.9,2602.4,3.85507]
[1727320006834,3.92921051,2602.9,2602.8,0.14506396]
[1727320007036,3.84828,2602.6,2602.2,7.44]
[1727320010001,3.84828,2602.6,2602.1,3.07436]
[1727320010234,3.84828,2602.6,2602.1,3.07442]
[1727320011149,3.84828,2602.6,2602.0,0.8205]
[1727320011352,0.7961,2602.3,2601.7,30.99475]
[1727320011554,3.87036,2602.3,2601.7,6.94959]
[1727320011754,3.87036,2602.3,2601.8,0.14527253]
[1727320012051,0.7961,2602.3,2601.8,3.22005253]
[1727320014154,0.7961,2602.3,2601.8,0.14527253]
[1727320014335,0.7961,2602.3,2601.9,3.07466]
[1727320015067,0.7961,2602.3,2602.0,0.14527253]
[1727320017248,0.7961,2602.3,2601.8,3.07477]
[1727320017453,0.7961,2602.3,2602.1,0.14527253]
[1727320017751,0.7961,2602.3,2602.2,0.14527253]
[1727320018116,0.7961,2602.3,2601.9,3.07464]
[1727320018317,0.7961,2602.3,2602.2,0.14527253]
[1727320018558,0.7961,2602.3,2601.9,6.14924]
[1727320018760,0.7961,2602.3,2602.2,0.14527253]
[1727320019062,0.7961,2602.3,2601.9,6.14924]
[1727320019348,0.7961,2602.3,2601.9,3.0746]
[1727320019519,0.7961,2602.3,2602.0,0.14560809]
[1727320020943,0.7961,2602.3,2602.0,3.22014809]
[1727320023547,0.7961,2602.3,2602.0,0.14560809]
[1727320023748,0.7961,2602.3,2602.0,3.22014809]
[1727320024063,0.7961,2602.3,2602.0,0.14560809]
[1727320025457,0.7961,2602.3,2602.0,0.14461017]
[1727320027767,0.7961,2602.3,2602.0,3.21915017]
[1727320028555,0.7961,2602.3,2602.0,0.14461017]
[1727320028937,0.7961,2602.3,2602.0,3.21916017]
[1727320029348,0.7961,2602.3,2602.0,0.14461017]
[1727320029629,0.7961,2602.3,2601.8,3.07477]
[1727320029855,0.7961,2602.3,2602.1,0.14572902]
[1727320030055,0.7961,2602.3,2602.0,3.07452]
[1727320030241,0.7961,2602.3,2602.2,0.14571995]
[1727320030466,0.7961,2602.3,2601.8,3.07468]
[1727320030656,0.7961,2602.3,2602.2,0.14571995]
[1727320030845,0.7961,2602.3,2602.0,3.07454]
[1727320031059,0.7961,2602.3,2602.2,0.14571995]
[1727320031258,1.18312,2602.3,2601.9,3.07466]
[1727320031455,0.38702,2602.3,2602.2,0.14571088]
[1727320031644,4.29362,2602.3,2602.2,0.14571088]
[1727320031851,3.0744,2602.2,2601.6,3.0874662]
[1727320032181,0.7815,2602.1,2601.6,3.0874662]
[1727320032370,0.7815,2602.1,2601.6,3.0874162]
[1727320032567,0.7815,2602.1,2601.6,6.1623762]
[1727320033054,0.7815,2602.1,2601.7,3.07491]
[1727320033666,0.7815,2602.1,2601.8,3.07477]
[1727320035039,0.09608155,2602.4,2601.8,3.07477]
[1727320035239,0.7813,2602.3,2601.8,3.85561]
[1727320035475,0.7813,2602.3,2601.8,6.93034]
[1727320035781,0.7813,2602.3,2601.9,3.07466]
[1727320037460,0.7813,2602.3,2601.8,3.85561]
[1727320039182,0.7813,2602.3,2601.8,6.93032]
[1727320039367,0.7813,2602.3,2601.8,6.93033]
[1727320039574,0.7813,2602.3,2601.8,3.85561]
[1727320039985,3.8555,2602.3,2601.8,3.85561]
[1727320041100,6.92976,2602.3,2601.8,3.85561]
[1727320041301,3.8555,2602.3,2601.8,3.85561]
[1727320041871,3.8555,2602.3,2601.9,0.14585856]
[1727320042606,0.7813,2602.3,2601.9,0.14585856]
[1727320045906,3.8555,2602.3,2601.9,0.14585856]
[1727320052009,0.784,2602.0,2601.9,0.14585856]
[1727320052313,3.85855,2602.0,2601.6,0.0124562]
[1727320052512,3.85855,2602.0,2601.9,0.14566809]
[1727320052998,3.85855,2602.0,2601.6,0.0124562]
[1727320053185,3.85855,2602.0,2601.9,0.14566809]
[1727320053380,3.85855,2602.0,2601.6,0.0124562]
[1727320053613,3.85855,2602.0,2601.9,0.14566809]
[1727320053799,3.85855,2602.0,2601.6,0.0124562]
[1727320053996,3.85855,2602.0,2601.9,0.14566809]
[1727320054170,3.85855,2602.0,2601.6,0.0124562]
[1727320054375,3.85855,2602.0,2601.9,0.14566809]
[1727320054697,3.85855,2602.0,2601.6,0.0124562]
[1727320055210,3.85855,2602.0,2601.7,0.14566809]
[1727320057380,0.784,2602.0,2601.7,0.14566809]
[1727320058321,3.85856,2602.0,2601.7,0.14566809]
[1727320058476,0.784,2602.0,2601.7,0.14566809]
[1727320062696,3.85856,2602.0,2601.7,0.14566809]
[1727320063786,0.783,2601.9,2601.7,0.14566809]
[1727320064793,1.66356167,2601.8,2601.7,0.14566809]
[1727320070832,2.42186167,2601.8,2601.7,0.14566809]
[1727320071038,3.27897984,2601.8,2601.7,0.14566809]
[1727320071397,6.35376984,2601.8,2601.7,0.14566809]
[1727320071798,3.27897984,2601.8,2601.7,0.14566809]
[1727320073607,2.42186167,2601.8,2601.7,0.14566809]
[1727320073942,5.49665167,2601.8,2601.7,0.14566809]
[1727320077027,5.59274975,2601.8,2601.7,0.14566809]
[1727320083477,5.49665167,2601.8,2601.7,0.14566809]
[1727320083971,5.59275316,2601.8,2601.7,0.14566809]
[1727320084270,6.45949648,2601.8,2601.7,0.14566809]
[1727320084773,6.36339499,2601.8,2601.7,0.14566809]
[1727320084968,6.45949639,2601.8,2601.7,0.14566809]
[1727320085373,6.36339499,2601.8,2601.7,0.14566809]
[1727320085564,6.45949639,2601.8,2601.7,0.14566809]
[1727320085747,6.36339499,2601.8,2601.7,0.14566809]
[1727320085944,6.45949632,2601.8,2601.7,0.14566809]
[1727320086342,7.00949632,2601.8,2601.7,0.14566809]
[1727320086768,5.34593465,2601.8,2601.7,0.14566809]
[1727320086996,7.00949632,2601.8,2601.7,0.14566809]
[1727320089262,3.62491,2601.7,2601.6,0.0124562]
[1727320089444,5.51493537,2601.7,2601.6,0.15872306]
[1727320092071,4.86882763,2601.7,2601.6,0.15872306]
[1727320092384,5.52397167,2601.7,2601.6,0.15872306]
[1727320095387,3.07491,2601.7,2601.6,0.15872306]
[1727320095583,4.73847167,2601.7,2601.6,0.15872306]
[1727320095992,3.07491,2601.7,2601.6,0.15872306]
[1727320096287,1.66356167,2601.7,2601.6,0.15872306]
[1727320097182,0.09609845,2601.9,2601.6,0.15872306]
[1727320097183,3.17083845,2601.9,2601.6,0.15872306]
[1727320097380,1.66356167,2601.7,2601.6,0.15872306]
[1727320097609,1.66356167,2601.7,2601.6,0.95202306]
[1727320105701,4.73847167,2601.7,2601.6,0.15872306]
[1727320105873,6.68061113,2601.7,2601.6,0.15872306]
[1727320106263,6.68061113,2601.7,2601.6,0.0124562]
[1727320108094,6.68061113,2601.7,2601.6,0.1590678]
[1727320108394,6.68061113,2601.7,2601.6,0.0124562]
[1727320108597,6.68061113,2601.7,2601.6,0.1590678]
[1727320108797,6.68061113,2601.7,2601.6,0.0124562]
[1727320108998,6.68061113,2601.7,2601.6,0.1590678]
[1727320109680,6.68061113,2601.7,2601.6,0.0124562]
[1727320109881,6.68061113,2601.7,2601.6,0.1590678]
[1727320126920,3.07491,2601.7,2601.6,0.1590678]
[1727320127143,4.73847167,2601.7,2601.6,0.1590678]
[1727320128160,1.66356167,2601.7,2601.6,0.9919678]
[1727320135948,3.07461,2602.0,2601.6,0.9919678]
[1727320136251,1.66356167,2601.7,2601.6,0.9919678]
[1727320147284,3.07473,2601.9,2601.6,0.9919678]
[1727320147509,1.66356167,2601.7,2601.6,0.9919678]
[1727320154694,1.66356167,2601.8,2601.6,0.9919678]
[1727320166716,3.07461,2602.0,2601.6,0.9919678]
[1727320166925,1.66356167,2601.8,2601.6,0.9919678]
[1727320169399,4.73838167,2601.8,2601.6,0.9919678]
[1727320169598,4.73838167,2601.8,2601.6,0.1590678]
[1727320169799,1.66356167,2601.8,2601.6,0.1590678]
[1727320173898,4.73838167,2601.8,2601.6,0.1590678]
[1727320174228,3.07491,2601.7,2601.6,0.1590678]
[1727320174443,3.84071,2601.7,2601.6,0.1590678]
[1727320187591,0.7658,2601.7,2601.6,0.1590678]
[1727320187794,3.84071,2601.7,2601.6,0.1590678]
[1727320189491,0.7658,2601.7,2601.6,0.1590678]
[1727320190592,3.07479,2601.8,2601.6,0.1590678]
[1727320190775,1.66356167,2601.7,2601.6,0.1590678]
[1727320191197,3.07377,2602.7,2601.6,0.1590678]
[1727320191198,0.8137,2602.6,2602.1,3.88986]
[1727320191354,0.8137,2602.8,2602.3,3.07409]
[1727320191558,1.66356167,2602.9,2602.4,3.88953]
[1727320191859,1.66356167,2602.7,2602.5,3.07389]
[1727320192060,1.66356167,2602.7,2602.6,0.14637569]
[1727320192787,1.66356167,2602.7,2602.4,0.8155]
[1727320193095,1.66356167,2602.7,2602.5,0.14634847]
[1727320193793,1.66356167,2602.7,2602.5,3.22029847]
[1727320195596,3.07339,2603.0,2602.5,3.22029847]
[1727320195801,1.66356167,2602.9,2602.5,3.22023847]
[1727320196128,1.66356167,2602.9,2602.6,3.07376]
[1727320196310,1.66356167,2602.9,2602.5,3.07389]
[1727320196617,1.66356167,2602.9,2602.6,0.14634847]
[1727320196779,1.66356167,2602.9,2602.6,3.22017847]
[1727320196980,0.8137,2603.1,2602.7,3.07371]
[1727320197219,1.66356167,2602.9,2602.6,0.14634847]
[1727320197396,0.8137,2603.1,2602.5,3.07387]
[1727320197604,1.66356167,2602.9,2602.7,0.14634847]
[1727320197795,1.66356167,2602.9,2602.6,3.07384]
[1727320197990,1.66356167,2602.9,2602.8,0.14634847]
[1727320198219,1.66356167,2602.9,2602.6,3.07384]
[1727320198424,1.66356167,2602.9,2602.8,0.14634847]
[1727320199027,3.88696,2603.1,2602.6,0.8001]
[1727320199187,1.66356167,2603.0,2602.8,0.14634847]
[1727320199392,1.66356167,2603.0,2602.6,0.8001]
[1727320199599,1.66356167,2603.0,2602.9,0.14634847]
[1727320199827,1.66356167,2603.0,2602.6,0.8001]
[1727320200208,1.66356167,2603.0,2602.7,0.14634847]
[1727320201911,1.66356167,2602.8,2602.7,0.14634847]
[1727320202444,2.43366167,2602.8,2602.7,0.14634847]
[1727320202627,6.37500905,2602.8,2602.3,0.8001]
[1727320202835,1.66356167,2602.4,2602.1,11.31446]
[1727320203149,1.66356167,2602.2,2602.1,0.8001]
[1727320203475,1.66356167,2602.2,2602.1,3.87453]
[1727320203643,1.66356167,2602.2,2602.1,0.8001]
[1727320203865,1.66356167,2602.2,2601.9,6.94929]
[1727320204004,1.66356167,2602.2,2602.1,3.07443]
[1727320204201,1.66356167,2602.2,2601.9,3.87467]
[1727320204453,1.66356167,2602.2,2602.0,3.07455]
[1727320205127,1.66356167,2602.2,2601.9,3.87467]
[1727320205516,1.66356167,2602.4,2602.1,3.07443]
[1727320206807,1.66356167,2602.4,2602.2,0.14443483]
[1727320209054,3.17027305,2602.3,2602.2,0.14443483]
[1727320209257,3.07439,2602.2,2601.6,11.3156362]
[1727320209565,1.66356167,2601.8,2601.6,11.3156362]
[1727320209851,1.66356167,2601.8,2601.6,3.8756362]
[1727320210005,1.66356167,2601.8,2601.6,0.8006562]
[1727320210609,1.66356167,2601.8,2601.6,3.8756062]
[1727320211048,1.66356167,2601.8,2601.6,0.8006562]
[1727320211714,1.66356167,2601.8,2601.6,3.8756762]
[1727320213152,1.66356167,2601.8,2601.6,3.0874762]
[1727320213921,1.66356167,2601.8,2601.6,0.0124562]
[1727320214122,1.66356167,2601.8,2601.7,3.07491]
[1727320214366,1.66356167,2602.0,2601.7,3.07491]
[1727320214567,1.66356167,2602.0,2601.6,0.0124562]
[1727320214765,1.66356167,2601.8,2601.6,0.0124562]
[1727320218239,1.66356167,2601.7,2601.6,0.0124562]
[1727320218444,2.49316167,2601.7,2601.6,0.0124562]
[1727320220854,5.56807167,2601.7,2601.6,0.0124562]
[1727320221849,5.56807167,2601.7,2601.6,0.1576165]
[1727320227968,5.6641759,2601.7,2601.6,0.1576165]
[1727320228178,6.53807349,2601.7,2601.6,0.1576165]
[1727320228667,7.03757349,2601.7,2601.6,0.1576165]
[1727320231183,7.03757349,2601.7,2601.6,0.0124562]
[1727320233242,5.37401182,2601.7,2601.6,0.0124562]
[1727320233484,7.03757349,2601.7,2601.6,0.0124562]
[1727320233844,7.03757349,2601.7,2601.6,0.1988614]
[1727320234080,7.03757349,2601.7,2601.6,0.0124562]
[1727320234249,7.03757349,2601.7,2601.6,0.1988614]
[1727320236339,7.43971819,2601.7,2601.6,0.1988614]
[1727320238476,7.43971819,2601.7,2601.6,0.0124562]
[1727320248000,10.43971819,2601.7,2601.6,0.0124562]
[1727320248203,10.74605171,2601.7,2601.6,0.0124562]
[1727320248358,10.74605171,2601.7,2600.8,0.0376797]
[1727320248359,3.07563,2601.1,2600.8,0.0376797]
[1727320248556,1.66356167,2600.9,2600.8,0.0376797]
[1727320249270,4.73941167,2600.9,2600.8,0.22439347]
[1727320249457,1.66356167,2600.9,2600.8,0.0376797]
[1727320250198,1.66356167,2600.9,2600.8,0.22460225]
[1727320253390,4.73941167,2600.9,2600.8,0.22460225]
[1727320258491,5.73722227,2600.9,2600.8,0.22460225]
[1727320258692,5.73722227,2600.9,2600.8,0.0376797]
[1727320259117,7.08542227,2600.9,2600.8,0.0376797]
[1727320266680,6.28722227,2600.9,2600.8,0.0376797]
[1727320272657,7.04482227,2600.9,2600.8,0.0376797]
[1727320275100,6.28722227,2600.9,2600.8,0.0376797]
[1727320281107,3.47780311,2601.1,2600.8,0.0376797]
[1727320281293,0.40218311,2601.1,2600.9,0.7636]
[1727320281478,1.66356167,2601.1,2600.9,0.95153946]
[1727320281700,3.47755446,2601.4,2600.9,0.95153946]
[1727320281921,1.66356167,2601.1,2600.9,3.26377946]
[1727320282226,1.66356167,2601.1,2601.0,0.8056]
[1727320282622,1.66356167,2601.1,2601.0,0.99320352]
[1727320289121,3.07538,2601.3,2601.0,0.99320352]
[1727320289336,1.66356167,2601.1,2601.0,0.99320352]
[1727320292085,4.73918167,2601.1,2601.0,0.99320352]
[1727320292529,4.73918167,2601.1,2601.0,0.18760352]
[1727320292893,4.73918167,2601.1,2600.8,0.8590797]
[1727320293089,1.66356167,2600.9,2600.8,0.8590797]
[1727320296819,1.66356167,2600.9,2600.8,1.04619288]
[1727320307130,3.85395,2601.4,2600.8,4.12216288]
[1727320307446,1.66356167,2601.1,2600.8,4.12216288]
[1727320308440,1.66356167,2601.1,2600.8,4.12210288]
[1727320315446,1.66356167,2601.1,2600.9,3.07579]
[1727320315754,1.66356167,2601.1,2601.0,0.18705871]
[1727320316634,1.66356167,2601.1,2600.8,3.9349497]
[1727320317049,1.66356167,2601.1,2600.9,0.18705871]
[1727320318257,1.66356167,2601.1,2600.9,3.26290871]
[1727320321730,1.66356167,2601.1,2600.9,0.18705871]
[1727320322947,1.66356167,2601.2,2601.0,0.8088]
[1727320323252,1.66356167,2601.2,2601.1,0.18684993]
[1727320332480,2.13745684,2601.2,2600.8,3.8810497]
[1727320332620,1.66356167,2601.2,2600.9,0.18670469]
[1727320338839,1.66356167,2601.2,2600.9,3.26253469]
[1727320340868,1.66356167,2601.4,2600.9,3.26253469]
[1727320342478,1.66356167,2601.2,2600.9,3.26253469]
[1727320342843,1.66356167,2601.2,2600.9,0.18670469]
[1727320344897,1.66356167,2601.0,2600.9,0.18670469]
[1727320347596,4.73930167,2601.0,2600.9,0.18670469]
[1727320347926,2.52128584,2601.0,2600.9,0.18670469]
[1727320355115,1.66356167,2601.0,2600.9,0.18670469]
[1727320355508,1.66356167,2601.0,2600.9,0.99840469]
[1727320355862,1.66356167,2601.0,2600.9,4.07425469]
[1727320357123,1.66356167,2601.0,2600.9,0.99840469]
[1727320357471,1.66356167,2601.0,2600.9,0.18670469]
[1727320359539,2.49556167,2601.0,2600.9,0.18670469]
[1727320359669,2.74511784,2601.0,2600.9,0.18670469]
[1727320359864,2.49556167,2601.0,2600.9,0.18670469]
[1727320373483,1.66356167,2601.0,2600.9,0.18670469]
[1727320383313,0.7727,2601.2,2600.9,3.26255469]
[1727320383314,1.66356167,2601.2,2600.9,3.26255469]
[1727320383597,1.66356167,2601.2,2601.0,3.07573]
[1727320383805,1.66356167,2601.2,2601.0,3.25517248]
[1727320384714,1.66356167,2601.2,2601.0,3.25510248]
[1727320384997,1.66356167,2601.2,2601.0,6.33077248]
[1727320385669,1.66356167,2601.2,2601.0,3.25510248]
[1727320386408,0.7675,2601.4,2601.0,3.25510248]
[1727320386605,1.66356167,2601.6,2601.2,3.07548]
[1727320386802,1.66356167,2601.5,2601.2,3.07543]
[1727320387219,1.66356167,2601.5,2601.3,0.17944248]
[1727320387623,1.66356167,2601.5,2601.1,3.85078]
[1727320387806,1.66356167,2601.5,2601.4,0.17944248]
[1727320388143,1.66356167,2601.5,2601.2,3.07549]
[1727320388481,1.66356167,2601.3,2601.1,3.85076]
[1727320388987,1.66356167,2601.3,2601.2,3.0755]
[1727320395692,1.66356167,2601.5,2601.2,3.0755]
[1727320395897,3.07491,2601.7,2601.2,3.0755]
[1727320396079,1.66356167,2601.5,2601.2,3.0755]
[1727320401787,1.66356167,2601.5,2601.3,0.17870922]
[1727320402004,1.66356167,2601.5,2601.2,3.0755]
[1727320402205,1.66356167,2601.5,2601.4,0.17864589]
[1727320402497,1.66356167,2601.5,2601.2,3.0755]
[1727320402700,1.66356167,2601.5,2601.4,0.17864589]
[1727320402901,1.66356167,2601.5,2601.2,3.0755]
[1727320403085,1.66356167,2601.5,2601.4,0.17864589]
[1727320403273,1.66356167,2601.5,2601.2,3.0755]
[1727320403803,1.66356167,2601.5,2601.3,0.17864589]
[1727320404301,1.66356167,2601.5,2601.1,3.85081]
[1727320404457,1.66356167,2601.5,2601.4,0.17864589]
[1727320404663,1.66356167,2601.5,2601.1,3.85081]
[1727320405076,1.66356167,2601.5,2601.2,0.17864589]
[1727320406260,2.41936167,2601.5,2601.2,0.17864589]
[1727320406464,1.66356167,2601.3,2601.2,0.17864589]
[1727320417398,1.66356167,2601.5,2601.2,3.25414589]
[1727320417743,1.66356167,2601.5,2601.2,0.17864589]
[1727320418593,1.66356167,2601.5,2601.2,3.25413589]
[1727320425345,1.66356167,2601.5,2601.2,0.17864589]
[1727320425852,1.66356167,2601.5,2601.2,3.25402589]
[1727320426067,1.66356167,2601.5,2601.3,3.07538]
[1727320426217,1.66356167,2601.5,2601.3,3.25397159]
[1727320428632,1.66356167,2601.5,2601.4,0.8324]
[1727320428959,1.66356167,2601.5,2601.4,1.01094634]